bitfinex-derivatives/quotes_SOLF0:USTF0_20250207
["timestamp","ask_amount","ask_price","bid_price","bid_amount"]
[1738962383927,5.2468,190.57,190.56,4.22936005]
[1738962386526,191.0,190.56,190.44,1.6557]
[1738962386736,214.72486181,190.56,190.44,6.9056]
[1738962387026,214.72486181,190.56,190.44,1.6557]
[1738962387229,5.2491,190.48,190.44,1.6557]
[1738962387827,0.03390636,190.48,190.44,4.23473039]
[1738962388029,5.2497,190.46,190.44,4.23473039]
[1738962388534,0.03390636,190.48,190.44,4.23473039]
[1738962389031,191.0,190.56,190.45,23.72486181]
[1738962389431,191.0,190.56,190.46,1.5473]
[1738962390336,0.03468677,190.53,190.49,0.03725872]
[1738962390827,5.2488,190.5,190.49,0.03725872]
[1738962391238,191.0,190.52,190.44,4.2]
[1738962391430,5.2499,190.45,190.44,4.2]
[1738962394637,0.03641125,190.46,190.44,4.2]
[1738962396240,5.2479,190.53,190.48,5.2489]
[1738962396436,191.0,190.57,190.44,4.2]
[1738962396632,23.72486181,190.56,190.44,4.2]
[1738962396836,5.2491,190.48,190.44,4.2]
[1738962397138,23.72486181,190.53,190.44,4.2]
[1738962397439,5.2497,190.46,190.44,4.24004963]
[1738962397938,5.2499,190.45,190.44,4.24004963]
[1738962398241,5.2499,190.45,190.44,4.963e-05]
[1738962398441,5.2519,190.38,190.33,8.4518]
[1738962398741,23.72486181,190.44,190.27,23.72486181]
[1738962398937,5.252,190.38,190.33,5.2532]
[1738962399436,5.252,190.38,190.27,23.72486181]
[1738962399639,0.0363322,190.37,190.34,0.02972383]
[1738962400742,0.0363322,190.37,190.35,5.2524]
[1738962401442,5.2508,190.42,190.34,0.02972383]
[1738962401744,191.0,190.46,190.36,23.72486181]
[1738962401940,25.25666181,190.5,190.36,23.72486181]
[1738962402140,1.5318,190.5,190.36,23.72486181]
[1738962402340,5.2502,190.44,190.38,5.2516]
[1738962402643,0.035367,190.45,190.41,0.03495695]
[1738962402842,25.25666181,190.5,190.34,1.623]
[1738962403144,23.72486181,190.44,190.41,0.04022597]
[1738962403341,214.72486181,190.44,190.31,1.6467]
[1738962403537,1.6625,190.43,190.32,5.2534]
[1738962403742,1.6625,190.43,190.31,1.6467]
[1738962404139,1.6625,190.43,190.31,6.9003]
[1738962404543,0.03365992,190.39,190.35,0.02583006]
[1738962405245,5.2523,190.37,190.35,0.02583006]
[1738962405944,0.03365992,190.39,190.35,0.02583006]
[1738962406546,0.03365992,190.39,190.36,5.2522]
[1738962406741,5.28525992,190.39,190.35,0.02583006]
[1738962407048,0.03365992,190.39,190.35,0.02583006]
[1738962408850,0.03365992,190.39,190.35,5.27833006]
[1738962409050,0.03365992,190.39,190.35,0.02583006]
[1738962409751,5.2518,190.38,190.35,0.02583006]
[1738962410150,0.03365992,190.39,190.35,0.02583006]
[1738962411050,5.28545992,190.39,190.35,5.27843006]
[1738962411752,0.03365992,190.39,190.35,0.02583006]
[1738962412247,5.2519,190.38,190.35,5.27843006]
[1738962412550,0.03365992,190.39,190.35,0.02583006]
[1738962412952,1.5587,190.49,190.35,23.75069187]
[1738962413142,1.5587,190.49,190.36,1.6532]
[1738962413346,5.2502,190.45,190.4,5.2512]
[1738962414145,0.03687296,190.44,190.41,0.0402652]
[1738962415153,0.03687296,190.44,190.41,5.2911652]
[1738962415353,0.03687296,190.44,190.41,0.0402652]
[1738962416454,0.03687296,190.44,190.41,5.2911652]
[1738962416654,0.03687296,190.44,190.41,0.0402652]
[1738962417046,0.03687296,190.44,190.43,5.2504]
[1738962417654,0.03687296,190.44,190.42,5.2507]
[1738962419556,0.03687296,190.44,190.41,5.2912652]
[1738962420255,0.03687296,190.44,190.42,5.2507]
[1738962421257,0.03687296,190.44,190.43,5.2504]
[1738962422257,0.03687296,190.44,190.41,0.0402652]
[1738962422658,5.2505,190.43,190.41,0.0402652]
[1738962422858,0.03687296,190.44,190.41,5.2912652]
[1738962423158,0.03687296,190.44,190.41,0.0402652]
[1738962424455,3.3359,190.56,190.41,23.76512701]
[1738962424655,1.6756,190.56,190.44,23.72486181]
[1738962424861,191.0,190.57,190.45,1.5097]
[1738962425060,191.0,190.57,190.47,23.72486181]
[1738962425656,0.03942678,190.54,190.5,0.03676885]
[1738962426361,5.28682678,190.54,190.5,0.03676885]
[1738962427164,0.03942678,190.54,190.5,0.03676885]
[1738962427564,0.03942678,190.54,190.5,23.76163066]
[1738962428065,83.4426155,190.61,190.53,23.72486181]
[1738962428364,5.245,190.63,190.53,23.72486181]
[1738962428574,1.587,190.66,190.54,1.5799]
[1738962429065,0.03698114,190.62,190.58,0.03999023]
[1738962430171,0.03698114,190.62,190.59,5.2459]
[1738962430564,0.03698114,190.62,190.58,0.03999023]
[1738962431969,5.246,190.59,190.58,0.03999023]
[1738962432972,5.2457,190.61,190.58,0.03999023]
[1738962433171,0.03698114,190.62,190.58,0.03999023]
[1738962433577,5.246,190.59,190.58,0.03999023]
[1738962436576,0.03698114,190.62,190.58,0.03999023]
[1738962437177,5.28238114,190.62,190.58,0.03999023]
[1738962437574,0.03698114,190.62,190.58,0.03999023]
[1738962438276,5.2455,190.61,190.58,0.03999023]
[1738962438474,0.03698114,190.62,190.58,0.03999023]
[1738962438878,5.246,190.6,190.58,0.03999023]
[1738962439678,0.03698114,190.62,190.58,0.03999023]
[1738962441780,0.03698114,190.62,190.59,23.72486181]
[1738962442385,1.6744,190.73,190.59,23.72486181]
[1738962442682,1.6744,190.73,190.62,23.72486181]
[1738962442875,5.2441,190.67,190.62,5.2452]
[1738962443278,1.6744,190.73,190.62,5.2452]
[1738962443574,0.03963396,190.66,190.63,0.03383424]
[1738962443779,1.6744,190.73,190.63,0.03383424]
[1738962444082,0.03402783,190.66,190.63,0.03383424]
[1738962444281,1.6744,190.73,190.63,5.27873424]
[1738962444482,0.03933516,190.66,190.63,0.03383424]
[1738962444678,1.6744,190.73,190.63,0.03383424]
[1738962444878,0.03331128,190.66,190.63,0.03383424]
[1738962445078,1.6744,190.73,190.63,0.03383424]
[1738962445379,0.03874558,190.66,190.63,0.03383424]
[1738962445578,1.6744,190.73,190.64,5.2447]
[1738962445783,0.04012695,190.66,190.64,5.2447]
[1738962445983,5.2435,190.69,190.64,5.2447]
[1738962447489,0.0373808,190.7,190.63,0.03383424]
[1738962447788,0.0373808,190.7,190.65,5.2442]
[1738962448792,5.2433,190.69,190.65,5.2442]
[1738962449681,5.2437,190.68,190.64,5.2445]
[1738962450690,0.0373808,190.7,190.63,0.03383424]
[1738962451392,14.8912721,190.7,190.63,0.03383424]
[1738962452495,5.2447,190.64,190.63,0.03383424]
[1738962452890,0.03952221,190.65,190.51,23.78014082]
[1738962453191,5.2467,190.57,190.53,5.2476]
[1738962453988,5.28379372,190.57,190.53,5.28179819]
[1738962454686,0.03709372,190.57,190.55,5.2471]
[1738962455288,0.03709372,190.57,190.56,5.2469]
[1738962455895,0.03709372,190.57,190.53,10.18419819]
[1738962456087,0.03709372,190.57,190.54,5.2474]
[1738962456891,0.03709372,190.57,190.53,15.43179819]
[1738962457195,5.28369372,190.57,190.53,15.43179819]
[1738962457395,0.03709372,190.57,190.53,10.18419819]
[1738962457594,0.03709372,190.57,190.56,5.2469]
[1738962461398,0.03709372,190.57,190.53,10.18419819]
[1738962461600,0.03709372,190.57,190.54,5.2472]
[1738962461798,0.03709372,190.57,190.53,10.18419819]
[1738962461994,5.28369372,190.57,190.54,5.2473]
[1738962462297,0.03709372,190.57,190.53,10.18419819]
[1738962462496,5.2471,190.56,190.53,15.43189819]
[1738962462697,0.03709372,190.57,190.53,10.18419819]
[1738962463301,0.03709372,190.57,190.54,5.2474]
[1738962463498,0.03709372,190.57,190.53,10.18419819]
[1738962464898,5.2469,190.56,190.53,10.18419819]
[1738962465505,5.28369372,190.57,190.53,15.43179819]
[1738962465801,0.03709372,190.57,190.53,10.18419819]
[1738962466006,0.03709372,190.57,190.54,5.2474]
[1738962466199,0.03709372,190.57,190.53,10.18419819]
[1738962467601,5.2473,190.55,190.53,10.18419819]
[1738962469604,5.2474,190.54,190.53,10.18419819]
[1738962478808,5.2492,190.48,190.44,14.87554338]
[1738962479009,5.2492,190.48,190.44,20.12554338]
[1738962479309,5.2492,190.48,190.42,1.5665]
[1738962479605,1.6369,190.55,190.44,14.87554338]
[1738962480005,0.03713843,190.52,190.49,0.03847583]
[1738962480200,5.2487,190.5,190.49,0.03847583]
[1738962481108,20.12424338,190.5,190.49,0.03847583]
[1738962481606,5.2487,190.5,190.49,0.03847583]
[1738962485007,5.28513843,190.52,190.49,5.28727583]
[1738962485409,0.03713843,190.52,190.49,0.03847583]
[1738962485604,5.2485,190.5,190.49,0.03847583]
[1738962488412,0.03713843,190.52,190.49,0.03847583]
[1738962489112,0.03713843,190.52,190.5,5.2483]
[1738962489419,0.03713843,190.52,190.49,0.03847583]
[1738962490013,0.03713843,190.52,190.5,5.2483]
[1738962491511,0.03713843,190.52,190.49,5.28717583]
[1738962491711,0.03713843,190.52,190.49,0.03847583]
[1738962492408,5.2468,190.57,190.52,5.2477]
[1738962492713,14.87554338,190.56,190.49,0.03847583]
[1738962493614,0.03915929,190.54,190.49,0.03847583]
[1738962494513,5.2481,190.52,190.49,0.03847583]
[1738962494713,0.03915929,190.54,190.49,0.03847583]
[1738962494906,5.2485,190.5,190.49,0.03847583]
[1738962500714,20.12404338,190.5,190.49,0.03847583]
[1738962501617,5.2501,190.45,190.42,1.5633]
[1738962502820,5.29014257,190.45,190.42,1.6011271]
[1738962504121,0.04004257,190.45,190.42,1.6011271]
[1738962504325,5.2502,190.44,190.42,1.6011271]
[1738962507723,5.2504,190.43,190.42,0.0378271]
[1738962507928,0.04004257,190.45,190.42,0.0378271]
[1738962508625,0.04004257,190.45,190.43,5.2504]
[1738962509424,0.04004257,190.45,190.42,0.0378271]
[1738962510322,5.29004257,190.45,190.42,0.0378271]
[1738962513319,0.04004257,190.45,190.42,0.0378271]
[1738962513519,191.0,190.53,190.44,14.87554338]
[1738962514028,31.46,190.42,190.14,38.50109979]
[1738962514223,14.87554338,190.19,190.01,3.18]
[1738962514525,20.13484338,190.11,190.01,3.18]
[1738962514926,20.13484338,190.11,190.09,0.03905191]
[1738962515129,23.55512974,190.11,190.1,92.06064436]
[1738962515323,38.43067312,190.11,190.1,66.23114436]
[1738962515522,23.55512974,190.11,190.1,57.88884436]
[1738962515724,35.25185897,190.11,190.1,57.88884436]
[1738962516128,38.31807327,190.11,190.1,57.88884436]
[1738962516324,37.88267881,190.11,190.1,57.88884436]
[1738962516528,38.31807327,190.11,190.1,57.88884436]
[1738962516731,46.93491535,190.11,190.09,0.03905191]
[1738962516933,6.0511062,190.1,190.01,3.18]
[1738962517130,11.3111062,190.09,190.01,3.18]
[1738962517332,6.0511062,190.08,190.01,3.18]
[1738962517633,6.31139929,190.06,190.01,3.18]
[1738962517832,6.0511062,190.05,190.01,3.18]
[1738962518023,6.0511062,190.04,190.01,3.18]
[1738962518227,3.42028636,190.03,190.01,3.21739412]
[1738962518427,3.42028636,190.02,190.01,3.21739412]
[1738962518929,17.74786891,190.02,190.01,3.21739412]
[1738962519734,91.17411949,190.02,189.93,0.4671209]
[1738962519934,3.42028636,190.01,189.93,0.4671209]
[1738962520130,3.42028636,190.0,189.93,0.4671209]
[1738962520430,2.331e-05,189.99,189.93,0.4671209]
[1738962520635,14.32758255,190.01,189.93,23.92777992]
[1738962520835,77.19758959,189.98,189.94,5.30037634]
[1738962521135,52.29458959,189.98,189.93,22.81436507]
[1738962521433,2.14432923,189.97,189.93,22.81436507]
[1738962521638,150.82983087,189.97,189.93,22.81436507]
[1738962521833,142.82903087,189.97,189.93,22.81436507]
[1738962522336,142.82903087,189.97,189.92,23.92777992]
[1738962522835,142.82903087,189.97,189.91,104.02]
[1738962523135,142.82903087,189.97,189.95,5.2637]
[1738962523333,118.38668029,189.97,189.95,5.2637]
[1738962523530,101.83858029,189.97,189.91,85.73442008]
[1738962523732,93.64348029,189.97,189.93,23.92777992]
[1738962524431,93.64348029,189.97,189.96,5.2634]
[1738962525330,93.64348029,189.97,189.91,23.92777992]
[1738962525934,93.64348029,189.97,189.96,5.2634]
[1738962526835,36.89578029,189.97,189.96,298.97278489]
[1738962527034,20.85038029,189.97,189.96,298.97278489]
[1738962528331,0.04020978,189.98,189.97,5.2632]
[1738962528929,0.04020978,189.98,189.97,29.19097992]
[1738962530035,2.10469067,190.05,190.01,5.2619]
[1738962530239,5.2602,190.08,190.01,5.2619]
[1738962530542,2.63084315,190.09,190.01,5.2619]
[1738962530543,2.10440494,190.07,190.01,5.2619]
[1738962530732,2.10440494,190.06,190.01,5.2619]
[1738962530935,2.10440494,190.05,189.98,1.5231]
[1738962531135,0.03610981,190.04,190.02,5.2616]
[1738962531534,175.52223549,190.1,190.02,55.83972128]
[1738962531739,2.10436838,190.09,190.02,55.83972128]
[1738962532036,9.72083961,190.09,190.02,50.57812128]
[1738962532444,1.3153967,190.08,190.02,50.57812128]
[1738962532737,5.2607,190.06,190.03,50.61771187]
[1738962532933,2.63071791,190.08,190.03,50.61771187]
[1738962533137,2.63071791,190.09,190.03,50.61771187]
[1738962533444,5.2609,190.06,190.03,50.61771187]
[1738962534136,5.30004766,190.06,190.03,50.61771187]
[1738962534342,5.30004766,190.06,190.03,50.21173364]
[1738962534543,5.2609,190.05,190.03,0.03959059]
[1738962536548,0.03914766,190.06,190.03,0.03959059]
[1738962537049,0.03914766,190.06,190.04,5.261]
[1738962537745,0.03914766,190.06,190.03,14.98937238]
[1738962537942,0.03914766,190.06,190.05,5.2609]
[1738962540139,0.03914766,190.06,190.03,0.03959059]
[1738962541745,2.10438328,190.05,190.03,0.03959059]
[1738962541944,2.10438328,190.04,190.03,0.03959059]
[1738962544152,4.73508749,190.04,190.03,0.03959059]
[1738962544455,2.10438328,190.04,190.03,0.03959059]
[1738962545048,3.41966653,190.04,190.03,0.03959059]
[1738962545247,6.05023122,190.04,189.94,23.92379264]
[1738962545448,1.31528325,190.03,189.94,23.92379264]
[1738962545643,1.31528325,190.02,189.94,23.92379264]
[1738962545853,2.10481781,190.08,189.98,5.2626]
[1738962546049,2.90083004,190.07,189.94,23.92379264]
[1738962546260,5.2627,189.99,189.94,5.2639]
[1738962546552,0.03525161,190.03,190.0,0.03625111]
[1738962546752,0.03525161,190.03,189.92,284.04037506]
[1738962546753,1.31569364,190.02,189.92,284.04037506]
[1738962546955,6.57769364,190.01,190.0,0.03729831]
[1738962547146,1.31569364,190.01,189.96,234.84685538]
[1738962547455,1.31569364,190.0,189.96,234.84685538]
[1738962547756,1.31569364,189.99,189.96,234.84685538]
[1738962547950,1.31569364,189.98,189.96,234.84685538]
[1738962548147,1.31569364,189.97,189.96,234.84685538]
[1738962549449,2.13924446,189.99,189.96,240.11025538]
[1738962549653,0.03442665,189.99,189.97,23.92379264]
[1738962550354,0.03442665,189.99,189.95,0.03392946]
[1738962550756,0.03442665,189.99,189.98,5.2629]
[1738962554057,2.1048365,190.04,190.03,5.2615]
[1738962554450,150.69292184,190.09,190.0,23.92379264]
[1738962554654,55.60613561,190.14,190.0,23.92379264]
[1738962554655,2.10429629,190.08,190.0,23.92379264]
[1738962554953,2.10429629,190.07,190.0,23.92379264]
[1738962555260,2.13802565,190.06,190.02,0.03461261]
[1738962555451,2.10429629,190.05,189.98,3.1393]
[1738962555658,2.10429629,190.04,190.02,0.03651736]
[1738962555853,2.10429629,190.03,190.02,0.03651736]
[1738962556159,2.10460243,190.03,190.02,0.03651736]
[1738962558252,2.10460243,190.03,189.97,23.92379264]
[1738962558458,2.10460243,190.02,189.97,23.92379264]
[1738962558660,2.10460243,190.01,189.97,23.92379264]
[1738962558857,2.10460243,190.0,189.97,23.92379264]
[1738962559058,2.10460243,189.99,189.98,5.2629]
[1738962560257,0.03796933,190.0,189.97,23.95782138]
[1738962560458,5.2604,190.07,190.01,5.2618]
[1738962561664,1.35168157,190.06,190.02,0.03405563]
[1738962561964,0.03642301,190.06,190.02,0.03405563]
[1738962562166,0.03642301,190.06,190.02,5.29585563]
[1738962564253,0.03642301,190.06,190.02,4.63885734]
[1738962564465,0.03642301,190.06,190.04,5.2612]
[1738962565263,0.03642301,190.06,190.02,14.947804]
[1738962565469,0.03642301,190.06,190.05,20.208704]
[1738962571268,0.03642301,190.06,190.05,5.2609]
[1738962572657,0.03642301,190.06,190.03,5.29933595]
[1738962573059,0.03642301,190.06,190.03,0.03803595]
[1738962574070,0.03642301,190.06,190.03,5.29943595]
[1738962574966,0.03642301,190.06,190.05,5.2609]
[1738962579674,0.03642301,190.06,190.04,5.2612]
[1738962585073,0.03642301,190.06,190.03,0.03803595]
[1738962585272,0.03642301,190.06,190.05,5.2609]
[1738962586379,0.03642301,190.06,190.04,5.2612]
[1738962587980,5.29712301,190.06,190.03,0.03803595]
[1738962588278,0.03642301,190.06,190.03,0.03803595]
[1738962588580,0.03642301,190.06,190.03,9.60679432]
[1738962588778,0.03642301,190.06,190.05,9.56875837]
[1738962591581,0.03642301,190.06,190.03,9.60679432]
[1738962591882,0.03642301,190.06,190.05,9.56875837]
[1738962593878,0.03642301,190.06,190.05,14.82965837]
[1738962594085,0.03642301,190.06,190.03,9.60679432]
[1738962594881,5.29722301,190.06,190.03,9.60679432]
[1738962595780,5.261,190.05,190.03,9.60679432]
[1738962597182,5.2612,190.04,190.03,0.03803595]
[1738962601587,5.261,190.05,190.03,0.03803595]
[1738962602990,5.2612,190.04,190.03,0.03803595]
[1738962604592,5.2625,190.0,189.97,9.56875837]
[1738962604795,9.56875837,190.02,189.97,9.56875837]
[1738962605189,9.56875837,190.02,189.95,9.56875837]
[1738962605594,9.56875837,190.0,189.95,9.56875837]
[1738962605796,5.2629,189.98,189.95,9.56875837]
[1738962606594,0.03889593,190.0,189.95,9.56875837]
[1738962607897,5.30129593,190.0,189.95,14.83245837]
[1738962608600,0.03889593,190.0,189.97,9.56875837]
[1738962609889,5.30149593,190.0,189.97,9.56875837]
[1738962610194,0.03889593,190.0,189.97,9.56875837]
[1738962610395,5.2626,189.99,189.97,9.56875837]
[1738962611895,0.03889593,190.0,189.97,9.56875837]
[1738962612101,0.03889593,190.0,189.99,9.56875837]
[1738962613507,0.03889593,190.0,189.99,14.83135837]
[1738962614303,9.56875837,190.1,190.03,5.2614]
[1738962614504,9.56875837,190.1,190.05,9.56875837]
[1738962615207,5.29954661,190.09,190.06,0.03456596]
[1738962615411,0.03954661,190.09,190.06,0.03456596]
[1738962615807,5.2604,190.07,190.06,0.03456596]
[1738962616211,9.56875837,190.08,189.99,9.56875837]
[1738962616410,9.56875837,190.04,189.97,9.56875837]
[1738962616612,9.56875837,190.02,189.97,9.56875837]
[1738962616804,14.83055837,190.02,189.97,9.56875837]
[1738962617010,5.2618,190.02,189.97,9.56875837]
[1738962617309,5.2612,190.05,190.01,9.56875837]
[1738962617511,9.56875837,190.06,190.01,9.56875837]
[1738962617811,0.03573197,190.05,190.01,9.56875837]
[1738962618411,5.2614,190.04,190.0,5.2621]
[1738962618814,0.03573197,190.05,190.0,5.2621]
[1738962619008,5.2618,190.02,189.99,9.56875837]
[1738962619215,9.56875837,190.04,189.97,9.56875837]
[1738962619611,0.03510209,190.02,189.97,9.56875837]
[1738962621011,5.2624,190.0,189.97,14.83185837]
[1738962621315,9.60386046,190.02,189.97,9.56875837]
[1738962621716,9.60386046,190.02,189.95,9.56875837]
[1738962621913,9.56875837,190.02,189.95,9.56875837]
[1738962622212,0.03859464,190.0,189.95,9.56875837]
[1738962622417,9.56875837,189.99,189.91,9.56875837]
[1738962622618,9.56875837,189.99,189.93,9.56875837]
[1738962622821,5.2634,189.97,189.93,9.56875837]
[1738962623012,0.03766255,189.98,189.93,9.56875837]
[1738962623217,5.2637,189.96,189.93,9.56875837]
[1738962623919,9.56875837,189.97,189.91,9.56875837]
[1738962624418,0.03727158,189.96,189.91,9.56875837]
[1738962625110,0.03727158,189.96,189.91,14.83345837]
[1738962625518,0.03727158,189.96,189.91,9.56875837]
[1738962625819,5.2637,189.95,189.91,9.56875837]
[1738962626826,0.03727158,189.96,189.93,9.56875837]
[1738962627013,0.03727158,189.96,189.95,9.56875837]
[1738962628115,145.43282184,190.05,189.95,9.56875837]
[1738962628324,145.43282184,190.05,190.01,9.56875837]
[1738962628624,5.2614,190.04,190.01,9.56875837]
[1738962629020,150.69382184,190.05,190.01,9.56875837]
[1738962629319,0.03331159,190.04,190.01,9.60485021]
[1738962630217,9.56875837,190.03,190.01,0.03609184]
[1738962630822,5.2618,190.02,190.01,0.03609184]
[1738962631227,5.2615,190.03,190.01,0.03609184]
[1738962631919,5.2618,190.02,190.01,0.03609184]
[1738962638129,5.29481159,190.04,190.01,0.03609184]
[1738962638324,0.03331159,190.04,190.01,0.03609184]
[1738962639829,5.2615,190.03,190.01,0.03609184]
[1738962640528,5.2618,190.02,190.01,0.03609184]
[1738962641732,5.29451159,190.04,190.01,5.29809184]
[1738962642025,0.03331159,190.04,190.01,5.29809184]
[1738962642430,0.03331159,190.04,190.01,0.03609184]
[1738962643027,5.2618,190.02,190.01,0.03609184]
[1738962644232,0.03331159,190.04,190.01,0.03609184]
[1738962644432,5.29451159,190.04,190.01,0.03609184]
[1738962650237,0.03331159,190.04,190.01,5.29809184]
[1738962651236,0.03331159,190.04,190.02,14.83201794]
[1738962651431,0.03331159,190.04,190.02,9.57021794]
[1738962652138,0.03331159,190.04,190.03,5.2615]
[1738962653434,5.2602,190.08,190.04,5.2611]
[1738962653634,5.2602,190.08,190.04,14.83131794]
[1738962654540,5.30038883,190.08,190.04,14.83131794]
[1738962655541,0.04018883,190.08,190.04,9.57021794]
[1738962655742,0.04018883,190.08,190.05,5.2609]
[1738962656039,0.04018883,190.08,190.02,11.17671794]
[1738962656240,5.2604,190.07,190.03,5.2613]
[1738962656836,0.04018883,190.08,190.04,14.83111794]
[1738962657041,0.04018883,190.08,190.04,9.57021794]
[1738962657737,0.04018883,190.08,190.05,5.2608]
[1738962660832,0.04018883,190.08,190.04,9.57021794]
[1738962661542,0.04018883,190.08,190.06,14.83061794]
[1738962661935,0.04018883,190.08,190.06,9.57021794]
[1738962663543,0.04018883,190.08,190.06,14.83081794]
[1738962663942,0.04018883,190.08,190.07,5.2604]
[1738962664841,0.04018883,190.08,190.06,9.57021794]
[1738962665639,5.30038883,190.08,190.06,9.57021794]
[1738962667045,0.04018883,190.08,190.06,9.57021794]
[1738962668144,0.04018883,190.08,190.07,5.2604]
[1738962669545,78.89618582,190.24,190.16,5.2578]
[1738962669847,69.32596788,190.24,190.2,9.57021794]
[1738962670046,5.2563,190.22,190.2,9.57021794]
[1738962670742,0.03948252,190.23,190.19,0.03347858]
[1738962670944,5.2568,190.2,190.16,9.57021794]
[1738962671145,9.60942869,190.22,190.19,0.03752776]
[1738962671545,9.57021794,190.2,190.19,0.03752776]
[1738962672247,14.82701794,190.2,190.19,0.03752776]
[1738962676047,5.2568,190.2,190.19,0.03752776]
[1738962680253,0.03921075,190.22,190.19,0.03752776]
[1738962680453,0.03921075,190.22,190.2,9.57021794]
[1738962680855,0.03921075,190.22,190.21,5.2565]
[1738962681156,155.00303978,190.32,190.2,9.57021794]
[1738962681357,5.2545,190.29,190.26,9.57021794]
[1738962681546,5.2545,190.29,190.25,5.2552]
[1738962681547,9.57021794,190.28,190.22,9.57021794]
[1738962681751,9.57021794,190.24,190.18,9.57021794]
[1738962681952,5.2567,190.21,190.18,9.57021794]
[1738962682149,5.2567,190.21,190.19,0.04023178]
[1738962682358,0.03834609,190.23,190.19,0.04023178]
[1738962683659,0.03834609,190.23,190.22,9.57021794]
[1738962684763,0.03834609,190.23,190.2,5.2566]
[1738962684764,5.29434609,190.23,190.2,14.82681794]
[1738962685259,0.03834609,190.23,190.19,0.04023178]
[1738962685562,5.2565,190.21,190.19,0.04023178]
[1738962685864,5.2563,190.22,190.19,0.04023178]
[1738962686066,0.03834609,190.23,190.19,0.04023178]
[1738962686460,5.2567,190.21,190.19,0.04023178]
[1738962686764,9.57021794,190.2,190.19,0.04023178]
[1738962687856,14.82701794,190.2,190.19,0.04023178]
[1738962688765,5.2568,190.2,190.19,0.04023178]
[1738962688960,5.2563,190.22,190.19,0.04023178]
[1738962689164,0.03834609,190.23,190.2,9.57021794]
[1738962689362,0.03834609,190.23,190.22,9.57021794]
[1738962689864,0.03834609,190.23,190.22,14.82641794]
[1738962690767,5.2543,190.29,190.25,5.2554]
[1738962691061,5.2543,190.29,190.27,9.57021794]
[1738962691267,5.2537,190.32,190.27,14.82501794]
[1738962691760,0.03511269,190.31,190.29,9.57021794]
[1738962692359,5.28891269,190.31,190.28,0.03554228]
[1738962692557,0.03511269,190.31,190.28,0.03554228]
[1738962692761,5.2543,190.29,190.28,0.03554228]
[1738962692966,0.03511269,190.31,190.28,0.03554228]
[1738962693470,5.254,190.3,190.28,0.03554228]
[1738962695866,0.03511269,190.31,190.3,5.254]
[1738962696070,0.03511269,190.31,190.3,20.16660903]
[1738962696265,17.43150903,190.42,190.3,14.91260903]
[1738962696578,2.5189,190.42,190.33,14.91260903]
[1738962697068,5.2521,190.38,190.33,20.16570903]
[1738962697469,0.03902951,190.37,190.34,0.04022011]
[1738962699466,0.03902951,190.37,190.34,5.29292011]
[1738962699672,0.03902951,190.37,190.34,0.04022011]
[1738962700773,0.03902951,190.37,190.35,5.2526]
[1738962700973,0.03902951,190.37,190.34,0.04022011]
[1738962702375,0.03902951,190.37,190.34,5.29312011]
[1738962702672,5.2526,190.35,190.34,0.04022011]
[1738962704469,14.91260903,190.36,190.22,3.4094]
[1738962704667,5.2546,190.28,190.22,3.4094]
[1738962704869,5.2546,190.28,190.21,14.91260903]
[1738962705068,14.91260903,190.3,190.18,14.91260903]
[1738962705269,14.91260903,190.3,190.21,5.2562]
[1738962705468,14.91260903,190.3,190.19,1.745]
[1738962705673,0.03529819,190.26,190.22,0.03483946]
[1738962705877,5.2559,190.24,190.22,0.03483946]
[1738962706578,5.2554,190.25,190.22,0.03483946]
[1738962707675,0.03529819,190.26,190.22,0.03483946]
[1738962708677,0.03529819,190.26,190.25,5.2554]
[1738962709484,145.43282184,190.35,190.28,5.2545]
[1738962710578,5.253,190.34,190.3,0.03391029]
[1738962710778,0.03660821,190.33,190.3,0.03391029]
[1738962712781,5.28980821,190.33,190.3,0.03391029]
[1738962714185,0.03660821,190.33,190.3,0.03391029]
[1738962714583,0.03660821,190.33,190.3,5.28791029]
[1738962717196,0.03660821,190.33,190.31,5.2537]
[1738962717887,0.03660821,190.33,190.3,5.28791029]
[1738962719788,0.03660821,190.33,190.31,5.2536]
[1738962720694,0.03660821,190.33,190.3,5.28791029]
[1738962722395,0.03660821,190.33,190.31,5.2537]
[1738962723188,5.29000821,190.33,190.3,0.03391029]
[1738962723390,14.94921724,190.33,190.3,0.03391029]
[1738962723996,5.2537,190.31,190.3,0.03391029]
[1738962724589,5.2537,190.31,190.3,1.029e-05]
[1738962726495,5.2537,190.31,190.3,2.18001029]
[1738962730900,5.2535,190.32,190.3,2.18001029]
[1738962731101,0.03660821,190.33,190.3,2.18001029]
[1738962731399,0.03660821,190.33,190.32,5.2535]
[1738962732802,0.03660821,190.33,190.31,5.2537]
[1738962733002,0.03660821,190.33,190.3,17.09261932]
[1738962733301,0.03660821,190.33,190.3,22.34641932]